Cogmind - Beta 17 @@@ ROGUE MODE // 2026.07.08 @ 09:52:44 Player: Bikerider58 Result: Destroyed by G-67 Veteran with Field Laser Performance ------------- Evolutions (4) 2000 Regions Visited (19) 3800 Robots Destroyed (333) 1665 Value Destroyed (15461) 15461 Prototype IDs (41) 820 Alien Tech Used (0) 0 Bonus (5081) 5081 TOTAL SCORE: 28827 Bonus ------- High Alert Combat Kills 3246 Follower Combat Kills 535 Entered Garrisons 1000 Aligned with FarCom 300 Cogmind --------- Core Integrity 0/850 Matter 10/300 Energy 310/310 System Corruption 4% Temperature Cool (0) Movement Walking (190) Ox1 Location -6/Factory Parts ------- > --- POWER (1) -------- Fission Core > --- PROPULSION (4) --- Flexi-carbon Leg Armored Leg Armored Leg > --- UTILITY (6) ------ Advanced Heat Sink High-capacity Storage Unit Long-range Terrain Scanner Advanced Terrain Scan Processor Improved Heavy Armor Plating > --- WEAPON (4) ------- Coil Gun Coil Gun Hypervelocity Gauss Rifle > --- INVENTORY (20) --- Hybrid Fission Core Medium Treads Improved Medium Treads Advanced Heat Sink Huge Storage Unit Long-range Terrain Scanner Authchip [R/NC] High-powered Tractor Beam Drone Bay (2/2) Improved Lightning Gun Cooled Particle Cannon Heavy Plasma Cannon Flak Gun Coil Gun AWS/Gauss Heavy Missile Launcher Plasma Cutter Power Maul Peak State ------------ > --- POWER ------------ Light Antimatter Reactor > --- PROPULSION ------- Improved Heavy Treads Improved Heavy Treads > --- UTILITY ---------- Advanced Cooling System High-capacity Storage Unit Advanced Terrain Scan Processor Improved Light Armor Plating Improved Light Armor Plating > --- WEAPON ----------- Long-range Proton Cannon Coil Gun AWS/Gauss > --- INVENTORY -------- Enhanced Nuclear Core Enhanced Nuclear Core Huge Storage Unit Long-range Terrain Scanner Long-range Terrain Scanner Reflective Plating Authchip [R/NC] High-powered Tractor Beam Phase Cannon Precision Grenade Launcher Plasma Cutter Power Maul [Rating: 84] Favorites ----------- Power Enhanced Nuclear Core Engine Deuterium Engine Power Core Enhanced Nuclear Core Reactor Light Antimatter Reactor Propulsion Armored Treads Treads Armored Treads Leg Flexi-carbon Leg Wheel Wheel Hover Unit Aerolev Unit Utility High-capacity Storage Unit Device Shield Generator Storage High-capacity Storage Unit Processor Advanced Targeting Computer Protection Improved Medium Armor Plating Weapon Gauss Rifle Energy Gun Medium Laser Energy Cannon Long-range Proton Cannon Ballistic Gun Gauss Rifle Launcher Precision Grenade Launcher Special Weapon Plasma Cutter Impact Weapon Power Maul Slashing Weapon Axe Build | -11 -10 -10 -9 -9 -9 -8 -8 -8 -8 -8 -7 -7 -7 -7 -7 -7 -6 -6 -6 ------- Run | Yrd Mat Min Mat Min Exi Min Mat Gar Mat Sto Fac Gar Fac Gar Fac Gar Fac Gar Fac Slots Evolved 8 | . . . 2 . . . 2 . . . 2 . . . . . 2 . . Power . | . . . . . . . . . . . . . . . . . . . . Propulsion 2 | . . . 1 . . . . . . . . . . . . . 1 . . Utility 4 | . . . . . . . 2 . . . 2 . . . . . . . . Weapon 2 | . . . 1 . . . . . . . . . . . . . 1 . . Parts Attached 183 | 7 8 7 13 6 2 . 9 5 5 7 6 14 10 6 2 17 13 21 25 Power 16 | 1 1 . 1 1 . . 1 . 1 . 2 . . 1 . 3 1 2 1 Engine 7 | 1 1 . 1 . . . 1 . 1 . . . . 1 . 1 . . . Core 7 | . . . . 1 . . . . . . 2 . . . . 1 . 2 1 Reactor 2 | . . . . . . . . . . . . . . . . 1 1 . . Propulsion 39 | 2 1 3 5 1 . . 2 2 3 1 . 2 . 1 . 2 3 4 7 Treads 29 | 2 1 . 5 1 . . 2 1 3 1 . 2 . 1 . 2 3 2 3 Leg 5 | . . . . . . . . . . . . . . . . . . 2 3 Wheel 4 | . . 3 . . . . . 1 . . . . . . . . . . . Hover 1 | . . . . . . . . . . . . . . . . . . . 1 Flight . | . . . . . . . . . . . . . . . . . . . . Utility 64 | 2 4 1 1 1 1 . 3 1 1 2 3 10 7 1 2 6 4 5 9 Device 33 | 1 3 1 . 1 1 . 2 . . . 3 4 3 1 2 3 . 3 5 Storage 5 | 1 1 . . . . . . . . 1 . . 1 . . . . . 1 Processor 6 | . . . . . . . 1 . 1 . . . 1 . . . 1 . 2 Hackware . | . . . . . . . . . . . . . . . . . . . . Protection 20 | . . . 1 . . . . 1 . 1 . 6 2 . . 3 3 2 1 Artifact . | . . . . . . . . . . . . . . . . . . . . Weapon 64 | 2 2 3 6 3 1 . 3 2 . 4 1 2 3 3 . 6 5 10 8 Energy Gun 12 | 1 1 1 1 1 . . . . . . . . 1 . . 3 . 2 1 Energy Cannon 4 | . . 1 . . . . . . . . . . . . . . 1 . 2 Ballistic Gun 35 | 1 1 . 3 . 1 . 3 1 . 1 1 2 1 2 . 2 4 8 4 Ballistic Cannon . | . . . . . . . . . . . . . . . . . . . . Launcher 8 | . . 1 2 1 . . . . . 1 . . . 1 . 1 . . 1 Special Weapon 1 | . . . . . . . . . . 1 . . . . . . . . . Impact Weapon 2 | . . . . 1 . . . . . . . . 1 . . . . . . Slashing Weapon 2 | . . . . . . . . 1 . 1 . . . . . . . . . Piercing Weapon . | . . . . . . . . . . . . . . . . . . . . Special Melee Weapon . | . . . . . . . . . . . . . . . . . . . . Unidentified Prototypes 10 | . . . 1 . . . 1 . . 1 1 . . . 1 1 . . 4 Parts Lost 56 | . 5 3 1 3 . . . 1 . . . 4 . 1 1 4 13 15 5 Power 4 | . 1 . . . . . . . . . . . . . . . 1 2 . Propulsion 13 | . 1 1 1 1 . . . 1 . . . . . . . . 3 4 1 Utility 17 | . 1 . . 1 . . . . . . . 3 . 1 . 3 4 3 1 Weapon 22 | . 2 2 . 1 . . . . . . . 1 . . 1 1 5 6 3 Highest Loss Streak 13 | . 3 3 1 2 . . . 1 . . . 2 . 1 1 2 13 10 2 To Critical Strikes 2 | . . . . . . . . 1 . . . . . . . . . 1 . Average Backups 16 | . 7 8 17 19 19 18 18 18 18 19 17 17 16 16 17 17 15 15 17 Power . | . . . . . . . . 1 1 1 1 1 1 1 1 1 . 1 1 Propulsion 3 | . . . 4 5 5 5 4 3 4 4 4 4 4 3 3 2 1 . . Utility 5 | . 2 3 5 6 5 5 4 6 5 5 3 3 4 5 7 6 5 6 6 Weapon 6 | . 3 4 6 5 7 6 7 7 7 6 7 7 6 5 5 7 6 6 8 Tool/Special . | . . . . . . . . . . . . . . . . . . . . Unused Backups 42 | . . . 6 . . . 2 1 4 2 1 3 . . 1 2 2 1 17 Power 5 | . . . . . . . . . . . . . . . 1 1 . 1 2 Propulsion 10 | . . . 2 . . . 1 . 3 . . 2 . . . . . . 2 Utility 5 | . . . . . . . . . . . 1 . . . . . 1 . 3 Weapon 21 | . . . 3 . . . 1 1 1 2 . 1 . . . 1 1 . 10 Tool/Special 1 | . . . 1 . . . . . . . . . . . . . . . . Average Slot Usage (%) 92 | . 98 73 95 99 66 100 99 99 99 99 99 97 91 92 92 89 86 77 91 Engine 4 | . 13 1 8 2 . . 6 9 8 9 5 . . 1 7 2 . . . Core 3 | . . . . 7 11 11 2 . . . 1 7 7 5 . 1 . 4 6 Treads 20 | . 27 14 28 32 33 33 26 25 26 27 23 21 15 15 15 15 18 9 8 Leg 1 | . . . . . . . . . . . . . . . . . . 1 14 Device 10 | . 13 14 9 9 11 11 18 10 9 9 22 13 9 7 7 8 5 10 16 Storage 8 | . 14 10 11 11 11 11 9 9 9 9 7 7 7 7 7 7 6 6 6 Processor 7 | . . . . . . . 8 9 9 9 7 7 13 15 15 15 12 6 6 Protection 7 | . . . 1 1 . . . 7 9 9 7 16 13 14 15 13 11 10 3 Energy Gun 5 | . 13 10 10 10 . 11 2 . . . . . 2 7 7 6 4 8 . Ballistic Gun 17 | . 14 1 21 22 . 22 24 25 26 23 17 20 16 13 10 13 15 12 17 Peak Build Rating 84 | 7 10 10 22 23 24 24 33 35 40 43 56 66 67 66 68 73 84 84 80 Average Rating 45 | 5 8 5 19 19 17 24 31 33 38 40 50 56 66 63 67 67 76 54 70 On Entrance 38 | . 7 10 7 22 21 24 24 33 32 40 40 56 66 67 65 66 69 84 44 Avg Prop Armor Cover (%) 9 | . . 16 12 . . . . 15 13 . . . . . . . . . 4 Naked Turns . | . . . . . . . . . . . . . . . . . . . . Heaviest Build 94 | 12 49 51 63 61 54 54 61 69 69 72 76 80 85 94 94 94 84 84 89 Greatest Support 150 | 40 40 40 60 60 60 60 60 60 76 76 76 95 95 95 95 95 150 150 80 Greatest Overweight (x) 21 | . 1 4 5 1 . . 1 6 6 . . 1 . . . . . 21 2 Average Overweight (x) . | . . 3 1 . . . . 2 . . . . . . . . . . . Largest Inventory Capacity 25 | 8 20 20 20 20 20 20 20 20 20 20 20 20 25 20 20 20 20 20 20 Average Capacity 19 | 7 19 16 20 20 20 20 20 20 20 20 20 20 20 20 20 20 20 20 20 Most Carried 20 | 1 12 12 20 20 20 20 20 20 20 20 20 20 20 20 20 20 20 20 20 Average Carried 18 | . 7 8 17 19 19 19 19 19 19 19 19 19 19 19 19 19 17 18 19 Final Capacity 20 | 8 20 20 20 20 20 20 20 20 20 20 20 20 20 20 20 20 20 20 20 Final Carried 20 | 1 11 10 19 18 17 20 20 20 20 20 20 20 20 20 20 20 14 19 19 Class Distribution -------------------- 26% | Tank 19% | Mutant 15% | Scavenger-Tank 9% | Assassin 9% | Gunner 5% | Scavenger-Skirmisher 4% | Skirmisher Dominant Class ---------------- Mutant | -10/Materials Mutant | -10/Mines Gunner | -9/Materials Gunner | -9/Mines Mutant | -9/Exiles Skirmisher | -8/Mines Scavenger-Skirmisher | -8/Materials Scavenger-Tank | -8/Garrison Tank | -8/Materials Tank | -8/Storage Skirmisher | -7/Factory Tank | -7/Garrison Tank | -7/Factory Tank | -7/Garrison Assassin | -7/Factory Scavenger-Tank | -7/Garrison Scavenger-Tank | -6/Factory Scavenger-Tank | -6/Garrison Assassin | -6/Factory Resources | -11 -10 -10 -9 -9 -9 -8 -8 -8 -8 -8 -7 -7 -7 -7 -7 -7 -6 -6 -6 ----------- Run | Yrd Mat Min Mat Min Exi Min Mat Gar Mat Sto Fac Gar Fac Gar Fac Gar Fac Gar Fac Matter Collected 8864 | 281 145 166 401 429 33 42 320 400 373 659 131 1007 512 844 147 974 706 623 671 Remotely 1185 | . . . . . . . . . . . . 143 122 351 . . 469 . 100 Salvage Created 14333 | 157 452 136 1289 536 . 42 440 451 631 1010 154 1740 566 1443 228 1602 1393 992 1071 Parts 724 | 5 21 9 70 29 . 5 18 27 41 68 10 73 29 72 12 84 70 36 45 Haulers Intercepted 13 | . 1 . 5 . . . 1 . 1 1 1 . 1 . 1 . . . 1 Recyclers Shooed 20 | . . . 9 . . . . . . . . . 6 . . . . . 5 Parts Field Recycled . | . . . . . . . . . . . . . . . . . . . . Retrieved Matter . | . . . . . . . . . . . . . . . . . . . . Parts Self-Destructed . | . . . . . . . . . . . . . . . . . . . . Prevented . | . . . . . . . . . . . . . . . . . . . . Parts Restored . | . . . . . . . . . . . . . . . . . . . . Kills | -11 -10 -10 -9 -9 -9 -8 -8 -8 -8 -8 -7 -7 -7 -7 -7 -7 -6 -6 -6 ------- Run | Yrd Mat Min Mat Min Exi Min Mat Gar Mat Sto Fac Gar Fac Gar Fac Gar Fac Gar Fac Combat Hostiles Destroyed 286 | . 12 12 24 15 . 1 7 13 11 20 2 21 8 37 4 28 30 23 18 Melee 1 | . . . . 1 . . . . . . . . . . . . . . . Guns 209 | . 12 . 13 11 . 1 7 9 11 20 2 21 8 28 4 21 13 20 8 Cannons 1 | . . . . . . . . . . . . . . . . . 1 . . AOE 71 | . . 12 11 3 . . . 4 . . . . . 9 . 7 16 2 7 Classes Destroyed 19 | 2 4 3 1 1 . 1 . 1 . 1 . . . 1 . . 1 1 2 Worker 19 | . . 2 . 1 . . . . 2 4 . . 2 . 2 . 3 . 3 Builder 7 | . . 1 1 1 . . . . . 1 . . . . . . 3 . . Tunneler 9 | 4 . 1 1 . . . . . . . . . 1 . . . . . 2 Hauler 13 | . 1 . 5 . . . 1 . 1 1 1 . 1 . 1 . . . 1 Recycler 9 | 1 . . 4 . . . . . . . . . 2 . . . 1 . 1 Mechanic 1 | . . . . . . . . . . . . . . . . . . . 1 Operator 2 | . . . . . . . . . . 1 . . 1 . . . . . . Watcher 1 | . 1 . . . . . . . . . . . . . . . . . . Swarmer 61 | . 3 . 11 3 . . . 4 . 4 . . 3 8 2 8 3 9 3 Saboteur 1 | . . . . . . . . . . . . . . . . . . . 1 Grunt 110 | . 9 . 10 9 . . 4 2 5 7 2 13 1 20 . 5 15 5 3 Brawler 5 | . . . . . . . . . . . . . . 1 . 1 2 . 1 Duelist 11 | . . . . 1 . . . 1 . 1 . 2 . . . 2 3 . 1 Protector 3 | . . . . . . . . . . . . . . . . . 3 . . Sentry 40 | . . . 3 . . . 2 4 6 8 . 4 1 1 . 6 1 2 2 Hunter 16 | . . . . . . 1 1 1 . . . 1 1 1 1 . 2 3 4 Programmer 24 | . . . . . . . . 1 . . . 1 2 6 1 6 1 3 3 Behemoth 1 | . . . . . . . . . . . . . . . . . . 1 . Assembled 14 | . . 12 . 2 . . . . . . . . . . . . . . . Best Kill Streak 23 | 4 3 13 7 6 . 1 6 4 4 5 2 5 3 13 2 12 23 5 6 Combat Bots Only 19 | . 3 12 4 6 . 1 6 4 4 4 2 5 3 13 2 12 19 5 5 Max Kills in Single Turn 5 | 1 2 4 2 4 . 1 1 4 2 3 1 2 2 5 2 4 2 2 2 Gunslinging 1 | . 1 . . . . . . . 1 1 . 1 1 . . . . . . Exploded 5 | . . 4 2 3 . . . 4 . . . . . 5 . 4 2 2 2 Melee 1 | . . . . 1 . . . . . . . . . . . . . . . Uniques/NPCs Destroyed . | . . . . . . . . . . . . . . . . . . . . Combat | -11 -10 -10 -9 -9 -9 -8 -8 -8 -8 -8 -7 -7 -7 -7 -7 -7 -6 -6 -6 -------- Run | Yrd Mat Min Mat Min Exi Min Mat Gar Mat Sto Fac Gar Fac Gar Fac Gar Fac Gar Fac Hostile Shots Fired 1677 | . 89 17 49 72 . 8 32 26 20 51 12 212 52 119 25 237 244 200 212 Missed 497 | . 26 2 9 16 . 4 7 9 8 12 1 60 19 43 9 83 69 48 72 Hits 1180 | . 63 15 40 56 . 4 25 17 12 39 11 152 33 76 16 154 175 152 140 Melee 48 | . . 3 . 2 . . 4 . . 3 . 6 . . . 8 12 . 10 Projectile 1132 | . 63 12 40 54 . 4 21 17 12 36 11 146 33 76 16 146 163 152 130 AOE 1 | . . . . . . . . . . . . . . . . . . . 1 Critical Strikes 32 | . 3 . . 3 . . 1 2 . 1 . 1 . 2 . 2 13 1 3 Part Disruptions 4 | . . 1 . 1 . . . . . . . . . . . 1 . . 1 Damage Taken 15859 | . 694 549 540 702 . 64 314 201 125 463 122 1186 352 901 121 1343 3591 2345 2246 Core 1685 | . 94 155 57 46 . . 22 . 23 60 9 79 38 55 15 173 335 251 273 Absorbed by Shields 1642 | . . . . . . . 118 74 50 178 47 457 72 220 49 377 . . . Reduced by Siege Mode 125 | . . . . . . . . . . . . . . . . . 85 40 . Ignored by Resistances 453 | . . . . . . . . . . . . . . 36 83 193 101 40 . Regen/Repaired (Parts) 330 | . . . . . . . . . . 192 . . . . 138 . . . . Core Remaining (%) 60 | 100 . . . . . 74 . . . 80 . . . . . 47 . . . Volleys Fired 707 | 11 53 13 52 37 . 4 24 32 20 39 7 67 22 77 10 74 46 60 59 Largest 4 | 2 2 2 3 3 . 3 3 3 3 3 3 3 3 3 3 3 4 4 4 Hottest 221 | 70 70 100 100 93 . 93 93 89 79 79 76 85 85 99 81 140 170 221 121 Shots Fired 1851 | 22 104 22 129 109 . 12 72 80 60 118 21 197 66 194 30 184 116 175 140 Gun 1754 | 22 104 12 120 108 . 12 72 79 60 118 15 197 66 188 30 177 91 170 113 Cannon 36 | . . 4 2 . . . . . . . . . . . . . 7 4 19 Launcher 55 | . . 6 7 1 . . . 1 . . . . . 6 . 7 18 1 8 Special 6 | . . . . . . . . . . . 6 . . . . . . . . Kinetic 1392 | 11 52 3 85 74 . 8 69 79 60 118 15 197 53 126 19 120 80 110 113 Thermal 340 | 11 52 7 2 31 . 4 3 . . . 6 . 13 62 11 57 11 60 10 Explosive 55 | . . 6 7 1 . . . 1 . . . . . 6 . 7 18 1 8 Electromagnetic 64 | . . 6 35 3 . . . . . . . . . . . . 7 4 9 Robot Hit Streak 42 | 15 19 7 23 17 . 7 22 42 17 27 9 23 15 24 19 30 24 14 13 Robot Miss Streak 5 | 1 3 3 3 3 . 1 3 2 1 2 2 2 1 3 2 5 3 5 3 Penetration Max 2 | . . . . . . . 1 1 1 1 . 1 1 . 1 1 2 1 1 Secondary Targets 38 | . 1 . 3 1 . . 2 1 1 3 . 2 1 5 . 4 7 6 1 Max Gunslinging Chain 1 | . 1 . 1 1 . . 1 1 1 1 . 1 1 1 . 1 1 1 1 Autonomous 44 | . . . . . . . . . . . . . . . . 24 20 . . Shots Hit Robots 1362 | 20 79 12 92 82 . 10 56 47 47 88 16 173 45 128 21 132 97 119 98 Core Hits 721 | 8 27 29 65 32 . 3 17 19 23 42 6 61 18 75 10 65 95 81 45 Critical Kills 13 | . . . . . . . . 1 . 1 . 1 . . 1 2 2 1 4 Critical Parts Destroyed 27 | . . . . 1 . . 1 2 . 1 1 4 . . . 5 3 1 8 Critical Strikes 51 | 1 1 1 . 3 . 1 1 3 . 2 1 5 . 2 1 10 5 2 12 Burn 11 | 1 1 1 . 2 . 1 . . . . . . . 2 . 3 . . . Destroy 35 | . . . . . . . 1 3 . 2 1 5 . . . 7 5 1 10 Smash 5 | . . . . 1 . . . . . . . . . . 1 . . 1 2 Melee Attacks 121 | . . . . 6 . . . 3 4 9 2 27 13 6 12 . 7 8 24 Impact 73 | . . . . 6 . . . . . . . . 10 6 12 . 7 8 24 Slashing 48 | . . . . . . . . 3 4 9 2 27 3 . . . . . . Piercing . | . . . . . . . . . . . . . . . . . . . . Sneak Attacks 11 | . . . . . . . . . . . . . 4 . 2 . 1 . 4 Combat Hostiles . | . . . . . . . . . . . . . . . . . . . . Follow-up Attacks . | . . . . . . . . . . . . . . . . . . . . Damage Inflicted 35876 | 200 809 853 2127 1327 . 93 974 1135 1054 2057 275 4392 1289 3322 605 3708 5096 2850 3710 Guns 24675 | 200 807 66 1170 1145 . 93 974 927 1052 1947 221 3058 808 2383 417 3304 2218 2488 1397 Cannons 499 | . . 35 36 . . . . . . . . . . . . . 149 . 279 Explosions 7449 | . . 752 902 120 . . . 208 . . . . . 939 . 395 2613 189 1331 Melee 2902 | . . . . 41 . . . . . . . 1334 390 . 188 . 116 166 667 Ramming 305 | . 2 . 19 21 . . . . 2 110 8 . 91 . . 9 . 7 36 Kinetic 19135 | 89 333 13 615 777 . 54 949 927 1052 1947 221 3058 611 1490 292 2147 1925 1238 1397 Thermal 5361 | 111 474 73 181 324 . 39 25 . . . 46 . 197 893 125 1157 381 1250 85 Explosive 7159 | . . 752 757 120 . . . 208 . . . . . 939 . 395 2525 189 1274 Electromagnetic 1014 | . . 15 555 44 . . . . . . . . . . . . 149 . 251 Impact 1495 | . . . . 41 . . . . . . . . 317 . 188 . 116 166 667 Slashing 1407 | . . . . . . . . . . . . 1334 73 . . . . . . Piercing . | . . . . . . . . . . . . . . . . . . . . Highest Corruption 12 | . . 5 3 3 3 3 . 1 1 1 . . 5 9 9 12 . 4 4 Average Corruption 4 | . . 5 2 3 3 3 . 1 1 1 . . 4 7 9 11 . 1 3 Corruption Purged 9 | . . . . . . . . . . . . . 2 3 . . . . 4 Corruption Blocked . | . . . . . . . . . . . . . . . . . . . . Effects 225 | . . 13 4 20 11 6 . 2 1 12 . . 15 36 27 54 . 5 19 Message Errors 55 | . . 2 1 5 3 2 . 1 1 2 . . 3 5 7 16 . 2 5 Matter Fused 47 | . . 4 1 4 4 2 . . . 1 . . 7 6 6 8 . . 4 Heat Flow Errors 29 | . . 2 . 4 . . . 1 . 2 . . . 4 5 7 . . 4 Energy Discharges 23 | . . 2 1 1 1 1 . . . 1 . . 1 5 3 3 . 1 3 Parts Rejected 1 | . . . . . . . . . . . . . . . . 1 . . . Parts Fused 4 | . . . . 1 . . . . . . . . 1 . . 2 . . . Data Loss (minor) 21 | . . . . 1 2 . . . . 3 . . 1 5 4 3 . 1 1 Data Loss (major) 14 | . . 1 1 2 . 1 . . . 1 . . 1 4 1 2 . . . Misfires 15 | . . 2 . 2 . . . . . 1 . . 1 3 1 4 . . 1 Alerts 6 | . . . . . 1 . . . . 1 . . . 2 . 2 . . . Misdirections 2 | . . . . . . . . . . . . . . . . 2 . . . Weapon Failures 8 | . . . . . . . . . . . . . . 2 . 4 . 1 1 Overload Shots 1 | . . . . . . . . . . . . . . 1 . . . . . Overflow Damage 970 | . . 6 20 41 . . . . . 4 . 14 232 . . . 129 130 394 Projectiles 2 | . . . . . . . . . . . . . . . . . . . 2 Explosions 127 | . . 6 20 . . . . . . . . . . . . . 53 . 48 Melee 841 | . . . . 41 . . . . . 4 . 14 232 . . . 76 130 344 Knockbacks 7 | . . . . . . . . . . . . . 2 . . . 1 1 3 Impact 7 | . . . . . . . . . . . . . 2 . . . 1 1 3 Kinetic . | . . . . . . . . . . . . . . . . . . . . Secondary . | . . . . . . . . . . . . . . . . . . . . Self-Inflicted Damage 868 | . . 85 108 . . . . . . . . . . . . 56 340 33 246 Shots 25 | . . 4 4 . . . . . . . . . . . . 2 10 1 4 Rammed 31 | . . . 5 4 . . . . 1 10 1 . 7 . . 1 . 1 1 Targets Rammed 40 | . 1 . 5 4 . . . . 1 11 1 . 8 . . 1 . 1 7 Kicked 6 | . . . . . . . . . . . . . . . . . . . 6 Crushed 3 | . 1 . . . . . . . . 1 . . 1 . . . . . . Highest Temperature 474 | 100 255 266 120 271 . . . 125 57 298 24 196 92 377 264 221 474 152 183 Average Temperature 61 | 37 53 69 41 78 . . . 25 16 46 18 42 37 82 113 61 149 18 52 Received Heat Transfer 3468 | . 372 100 123 408 . . 96 62 60 133 66 372 25 178 . 256 845 138 234 Effects 5 | . . . . . . . . . . . . . . 4 . . 1 . . Interference 3 | . . . . . . . . . . . . . . 3 . . . . . Damage (minor) 2 | . . . . . . . . . . . . . . 1 . . 1 . . Siege Activations 3 | . . . . . . . . . . . . . . . . . 2 1 . Total Turns 71 | . . . . . . . . . . . . . . . . . 53 18 . Longest Duration 42 | . . . . . . . . . . . . . . . . . 42 18 . Martial Activations . | . . . . . . . . . . . . . . . . . . . . Shielding Activations . | . . . . . . . . . . . . . . . . . . . . Robots Disrupted . | . . . . . . . . . . . . . . . . . . . . Combat Hostiles . | . . . . . . . . . . . . . . . . . . . . Robots Corrupted 10 | . . . . . . . . . . 1 . . 1 . . . 1 1 6 Combat Hostiles 4 | . . . . . . . . . . . . . . . . . . 1 3 Parts Fried 16 | . . . 2 . . . . . . 1 . . 4 . . . 2 2 5 Impact Corruptions 28 | . . . . 1 . . . . . 1 . . 5 . . . 3 3 15 Robots Melted 1 | . . . . . . . . . . . . . . . . . . 1 . Combat Hostiles 1 | . . . . . . . . . . . . . . . . . . 1 . Parts Melted 20 | 1 2 . . 1 . . . . . . . . . 2 . 6 2 6 . Heat Transferred 11491 | 407 1480 259 124 1073 . 185 74 . . . 148 . 370 1739 222 2017 623 2683 87 Parts Sabotaged . | . . . . . . . . . . . . . . . . . . . . Parts Stolen . | . . . . . . . . . . . . . . . . . . . . Parts Stripped . | . . . . . . . . . . . . . . . . . . . . Power Chain Reactions 3 | . . . 3 . . . . . . . . . . . . . . . . Alert | -11 -10 -10 -9 -9 -9 -8 -8 -8 -8 -8 -7 -7 -7 -7 -7 -7 -6 -6 -6 ------- Run | Yrd Mat Min Mat Min Exi Min Mat Gar Mat Sto Fac Gar Fac Gar Fac Gar Fac Gar Fac Maximum Alert Level 5 | . . . 1 . . . . 2 1 1 . 3 1 4 3 4 4 5 3 Low Security (%) 44 | 100 100 100 49 100 . 100 100 48 95 71 100 11 30 17 . . . . . Level 1 14 | . . . 50 . . . . 32 4 28 . 21 69 5 . . . . . Level 2 16 | . . . . . . . . 18 . . . 52 . 14 73 21 39 . 57 Level 3 11 | . . . . . . . . . . . . 13 . 18 26 26 51 18 42 Level 4 11 | . . . . . . . . . . . . . . 43 . 52 9 77 . Level 5 . | . . . . . . . . . . . . . . . . . . 4 . High Security . | . . . . . . . . . . . . . . . . . . . . Max Security . | . . . . . . . . . . . . . . . . . . . . Peak Influence 1658 | 10 82 55 391 146 . 30 122 494 240 374 163 747 394 1485 779 1486 1275 1658 948 Initial 886 | . . 21 . 139 . . . 61 240 52 163 28 392 137 779 408 779 886 870 Average 439 | 1 19 3 228 54 . 2 29 247 97 146 83 432 244 876 677 1059 802 1333 698 Influence Increases 10223 | 25 408 122 762 322 . 30 217 463 381 885 147 899 339 1358 205 1128 912 962 658 Destroy 0b10 Robot/C 5700 | . 240 40 480 260 . 20 140 300 220 480 100 500 180 740 80 560 540 460 360 Destroy 0b10 Robot/NC 385 | 25 10 20 55 15 . . 5 . 15 45 5 25 35 . 15 20 50 5 40 Destroy Leader 962 | . 74 10 110 40 . 10 32 10 72 136 12 30 62 50 32 30 110 50 92 Allied During Kill 185 | . . 5 . . . . . 20 . 72 13 56 19 . . . . . . Trap Triggered on 0b10 20 | . . . . . . . . . . . . . . . . . . 20 . Successful Hack 238 | . 24 . 19 . . . 7 . 22 27 14 7 31 . 36 26 . 21 4 Select Force Hacks 60 | . 60 . . . . . . . . . . . . . . . . . . Disable Machine 525 | . . 15 30 . . . 30 15 30 120 . . . . . 30 90 75 90 Anti-Garrison Action 1250 | . . . . . . . . 100 . . . 200 . 400 . 350 . 200 . Destroy Structure 523 | . . 32 68 7 . . 3 18 7 5 3 36 12 48 12 67 107 41 57 Partial Spotted 30 | . . . . . . . . . . . . . . . 15 . . . 15 Lose Combat Pursuer 345 | . . . . . . . . . 15 . . 45 . 120 15 45 15 90 . Influence Decreases 9307 | 25 353 177 405 672 7 30 123 63 751 650 466 192 889 70 1106 226 1131 571 1400 Entered New Map 3999 | . . 34 . 218 7 . . 33 254 72 196 12 355 60 706 176 707 381 788 Time Decay 4218 | 25 319 68 395 444 . 30 123 . 336 538 170 . 534 . 380 . 294 . 562 Lost Part 524 | . 34 30 10 10 . . . 10 . . . 40 . 10 10 40 130 150 50 Lost Ally 416 | . . 45 . . . . . 20 11 40 100 140 . . 10 10 . 40 . Purge Threat 150 | . . . . . . . . . 150 . . . . . . . . . . Squads Dispatched 48 | . 4 . 2 1 . . 5 . 5 3 1 . 6 . 5 . 9 . 7 Investigation 12 | . 2 . 1 . . . 3 . 1 . . . 2 . 3 . . . . Extermination 8 | . . . . . . . . . . . 1 . 3 . 1 . 1 . 2 Reinforcement 14 | . 2 . 1 1 . . . . 1 3 . . 1 . 1 . 2 . 2 Assault 5 | . . . . . . . . . . . . . . . . . 3 . 2 Garrison 9 | . . . . . . . 2 . 3 . . . . . . . 3 . 1 Intercept . | . . . . . . . . . . . . . . . . . . . . Searches Triggered . | . . . . . . . . . . . . . . . . . . . . Construction Impeded 4 | . . . 1 1 . . . . . . . . . . . . 1 . 1 Haulers Reinforced 2 | . . . . . . . . . . . . . . . 1 . . . 1 Active Scanning Responses . | . . . . . . . . . . . . . . . . . . . . Cargo Convoy Interrupts . | . . . . . . . . . . . . . . . . . . . . Stealth | -11 -10 -10 -9 -9 -9 -8 -8 -8 -8 -8 -7 -7 -7 -7 -7 -7 -6 -6 -6 --------- Run | Yrd Mat Min Mat Min Exi Min Mat Gar Mat Sto Fac Gar Fac Gar Fac Gar Fac Gar Fac Distress Signals 19 | . . . 2 . . . 1 . 5 3 . . 1 . 3 . 2 . 2 Communications Jammed . | . . . . . . . . . . . . . . . . . . . . Distress Signals . | . . . . . . . . . . . . . . . . . . . . Times Spotted 377 | . 21 19 36 16 . 1 9 11 17 30 2 27 14 39 11 32 35 28 29 Peak Tracking Total 11 | . 4 11 6 3 . 1 3 2 3 4 2 5 2 7 3 5 9 6 6 Tactical Retreats 21 | . . 1 . 1 . . . . 1 . . 3 . 6 1 2 1 5 . Traps | -11 -10 -10 -9 -9 -9 -8 -8 -8 -8 -8 -7 -7 -7 -7 -7 -7 -6 -6 -6 ------- Run | Yrd Mat Min Mat Min Exi Min Mat Gar Mat Sto Fac Gar Fac Gar Fac Gar Fac Gar Fac Traps Triggered 23 | . 1 . 3 . . . . 3 1 1 . 3 2 8 . . . 1 . Indirectly . | . . . . . . . . . . . . . . . . . . . . Trap Hack Attempts . | . . . . . . . . . . . . . . . . . . . . Triggered . | . . . . . . . . . . . . . . . . . . . . Disarmed 3 | . 3 . . . . . . . . . . . . . . . . . . Reprogrammed . | . . . . . . . . . . . . . . . . . . . . Reused 2 | . . . . . . . . . . . . . . . . . . 2 . Traps Extracted . | . . . . . . . . . . . . . . . . . . . . Installed 2 | . . . . . . . . . . . . . . . . . . 2 . Triggered 2 | . . . . . . . . . . . . . . . . . . 2 . Most Traps Carried 4 | . . . . . . . . . . . . . . . . . . 4 2 Machines | -11 -10 -10 -9 -9 -9 -8 -8 -8 -8 -8 -7 -7 -7 -7 -7 -7 -6 -6 -6 ---------- Run | Yrd Mat Min Mat Min Exi Min Mat Gar Mat Sto Fac Gar Fac Gar Fac Gar Fac Gar Fac Machines Disabled 52 | . . 1 2 . . . 2 3 2 8 . 2 . 6 . 7 6 7 6 Max in Single Turn 6 | . . 1 1 . . . 1 1 1 1 . 1 . 1 . 1 6 1 2 Garrison Relay 15 | . . . . . . . . 2 . . . 2 . 4 . 5 . 2 . Phase Generator 1 | . . . . . . . . . . . . . . 1 . . . . . Machines Repaired . | . . . . . . . . . . . . . . . . . . . . Machines Dismantled 2 | . . . . . . . . . . 1 . . . 1 . . . . . Machines Sabotaged . | . . . . . . . . . . . . . . . . . . . . Overloaded Fab Kills . | . . . . . . . . . . . . . . . . . . . . Hacking | -11 -10 -10 -9 -9 -9 -8 -8 -8 -8 -8 -7 -7 -7 -7 -7 -7 -6 -6 -6 --------- Run | Yrd Mat Min Mat Min Exi Min Mat Gar Mat Sto Fac Gar Fac Gar Fac Gar Fac Gar Fac Machines Accessed 88 | . 7 . 3 . 2 . 5 2 9 11 4 1 14 2 9 2 5 3 9 Terminals 54 | . 5 . 1 . . . 2 2 7 9 . 1 9 2 6 2 1 3 4 Fabricators 6 | . . . . . . . . . . . 2 . 3 . . . . . 1 Repair Stations 5 | . . . . . . . . . . 1 . . . . 2 . . . 2 Recycling Units 8 | . 2 . . . . . 1 . . 1 . . 1 . . . 2 . 1 Scanalyzers 7 | . . . 2 . . . 1 . 1 . 1 . . . . . 1 . 1 Garrison Access 6 | . . . . . . . 1 . 1 . 1 . 1 . 1 . 1 . . Total Hacks 186 | . 12 . 14 . 2 . 17 3 21 29 11 1 24 4 13 2 10 6 17 Successful 76 | . 8 . 10 . 2 . 11 2 6 12 6 1 2 . 7 2 2 2 3 Failed 108 | . 3 . 3 . . . 6 1 15 17 5 . 22 4 6 . 8 4 14 Catastrophic 25 | . . . . . . . 1 . 5 2 1 . 6 1 5 . 1 . 3 Database Lockouts 2 | . 1 . 1 . . . . . . . . . . . . . . . . Manual 62 | . 6 . 5 . 1 . 7 . 8 14 . . 3 . 6 . . . 12 Terminals 107 | . 10 . 4 . . . 5 3 16 21 . 1 17 4 10 2 1 6 7 Fabricators 11 | . . . . . . . . . . . 4 . 5 . . . . . 2 Repair Stations 13 | . . . . . . . . . . 5 . . . . 2 . . . 6 Recycling Units 11 | . 2 . . . . . 1 . . 3 . . 1 . . . 3 . 1 Scanalyzers 31 | . . . 10 . . . 9 . 2 . 6 . . . . . 3 . 1 Garrison Access 11 | . . . . . . . 2 . 3 . 1 . 1 . 1 . 3 . . Terminal Hacks 34 | . 6 . 3 . 2 . 2 2 4 7 . 1 1 . 2 2 . 2 . Record 1 | . . . . . 1 . . . . . . . . . . . . . . Part Schematic 3 | . . . . . . . . . . 3 . . . . . . . . . Robot Schematic 1 | . 1 . . . . . . . . . . . . . . . . . . Robot Analysis 6 | . . . 3 . . . 2 . . 1 . . . . . . . . . Prototype ID Bank 4 | . 2 . . . . . . . . 1 . . . . 1 . . . . Open Door 5 | . . . . . . . . 1 . 2 . 1 . . . . . 1 . Open DSF 1 | . . . . . . . . . . . . . . . 1 . . . . Branch Access Points 2 | . . . . . . . . . 1 . . . 1 . . . . . . Emergency Access Points 2 | . . . . . . . . 1 . . . . . . . 1 . . . Unreport Threat 1 | . . . . . . . . . 1 . . . . . . . . . . Locate Traps 1 | . . . . . . . . . 1 . . . . . . . . . . Disarm Traps 1 | . 1 . . . . . . . . . . . . . . . . . . Hauler Manifests 1 | . 1 . . . . . . . . . . . . . . . . . . Registered Components 1 | . 1 . . . . . . . . . . . . . . . . . . Zone Layout 1 | . . . . . . . . . 1 . . . . . . . . . . Garrison Registry 1 | . . . . . . . . . . . . . . . . 1 . . . Patrol Navigation 1 | . . . . . . . . . . . . . . . . . . 1 . Proto ID Catalog 1 | . . . . . 1 . . . . . . . . . . . . . . Fabricator Hacks 2 | . . . . . . . . . . . 1 . . . . . . . 1 Build 2 | . . . . . . . . . . . 1 . . . . . . . 1 Repair Station Hacks 4 | . . . . . . . . . . 4 . . . . . . . . . Scan Component 2 | . . . . . . . . . . 2 . . . . . . . . . Repair 2 | . . . . . . . . . . 2 . . . . . . . . . Recycling Unit Hacks 4 | . . . . . . . 1 . . 1 . . . . . . 1 . 1 Retrieve Components 4 | . . . . . . . 1 . . 1 . . . . . . 1 . 1 Scanalyzer 20 | . . . 7 . . . 7 . 2 . 4 . . . . . . . . Insert Component 6 | . . . 1 . . . 3 . 1 . 1 . . . . . . . . Analyze 6 | . . . 1 . . . 3 . 1 . 1 . . . . . . . . Retrieve Study 8 | . . . 5 . . . 1 . . . 2 . . . . . . . . Garrison Access Hacks 5 | . . . . . . . 1 . . . 1 . 1 . 1 . 1 . . Unlock Access 5 | . . . . . . . 1 . . . 1 . 1 . 1 . 1 . . Unauthorized Hacks 7 | . 2 . . . . . . . . . . . . . 4 . . . 1 Terminals 2 | . . . . . . . . . . . . . . . 2 . . . . Assimilate 2 | . . . . . . . . . . . . . . . 2 . . . . Fabricators 1 | . . . . . . . . . . . . . . . . . . . 1 Haulers 1 | . . . . . . . . . . . . . . . . . . . 1 Repair Stations 2 | . . . . . . . . . . . . . . . 2 . . . . Patch 2 | . . . . . . . . . . . . . . . 2 . . . . Recycling Units 2 | . 2 . . . . . . . . . . . . . . . . . . Tunnel 2 | . 2 . . . . . . . . . . . . . . . . . . Scanalyzers . | . . . . . . . . . . . . . . . . . . . . Garrison Access . | . . . . . . . . . . . . . . . . . . . . Data Cores Recovered 1 | . . . . . . . . . . . . . 1 . . . . . . Used . | . . . . . . . . . . . . . . . . . . . . Hacking Detections 71 | . 5 . 3 . . . 4 1 8 9 4 . 13 2 6 1 5 2 8 Full Trace Events 7 | . . . . . . . 2 . 1 . . . 2 1 1 . . . . Feedback Events 1 | . . . . . . . . . . . . . 1 . . . . . . Corruption 1 | . . . . . . . . . . . . . 1 . . . . . . Feedback Blocked . | . . . . . . . . . . . . . . . . . . . . Robot Schematics Acquired 1 | . 1 . . . . . . . . . . . . . . . . . . Robots Built . | . . . . . . . . . . . . . . . . . . . . Authchips . | . . . . . . . . . . . . . . . . . . . . Time . | . . . . . . . . . . . . . . . . . . . . Total Robot Build Rating . | . . . . . . . . . . . . . . . . . . . . Part Schematics Acquired 9 | . . . 1 . . . 3 . 1 3 1 . . . . . . . . Parts Built 4 | . . . . . . . . . . . 2 . . . . . . . 2 Authchips . | . . . . . . . . . . . . . . . . . . . . Time 223 | . . . . . . . . . . . 117 . . . . . . . 106 Total Part Build Rating 26 | . . . . . . . . . . . 14 . . . . . . . 12 Part Studies Acquired 8 | . . . 5 . . . 1 . . . 2 . . . . . . . . Parts Repaired 2 | . . . . . . . . . . 2 . . . . . . . . . Time 88 | . . . . . . . . . . 88 . . . . . . . . . Parts Recycled . | . . . . . . . . . . . . . . . . . . . . Recycled Matter . | . . . . . . . . . . . . . . . . . . . . Retrieved Matter . | . . . . . . . . . . . . . . . . . . . . Retrieved Components 7 | . . . . . . . 3 . . . . . . . . . 2 . 2 Parts Scanalyzed 6 | . . . 1 . . . 3 . 1 . 1 . . . . . . . . Part Schematics Acquired 6 | . . . 1 . . . 3 . 1 . 1 . . . . . . . . Parts Damaged 1 | . . . 1 . . . . . . . . . . . . . . . . Bothacking | -11 -10 -10 -9 -9 -9 -8 -8 -8 -8 -8 -7 -7 -7 -7 -7 -7 -6 -6 -6 ------------ Run | Yrd Mat Min Mat Min Exi Min Mat Gar Mat Sto Fac Gar Fac Gar Fac Gar Fac Gar Fac Used RIF Installer . | . . . . . . . . . . . . . . . . . . . . Robots Hacked . | . . . . . . . . . . . . . . . . . . . . Non-combat . | . . . . . . . . . . . . . . . . . . . . Combat . | . . . . . . . . . . . . . . . . . . . . Robot Hacks Applied . | . . . . . . . . . . . . . . . . . . . . Relay Couplers Released 64 | . . . . . . . . 10 . . . 9 . 17 . 17 . 11 . Machine Destruction 61 | . . . . . . . . 10 . . . 9 . 17 . 17 . 8 . Programmers 3 | . . . . . . . . . . . . . . . . . . 3 . Fabnet Peak Effective % . | . . . . . . . . . . . . . . . . . . . . Robots Rewired 11 | . . . . . . . . . . . . 9 . . . . . 2 . Allies Hacked . | . . . . . . . . . . . . . . . . . . . . Hacks Repelled . | . . . . . . . . . . . . . . . . . . . . Allies | -11 -10 -10 -9 -9 -9 -8 -8 -8 -8 -8 -7 -7 -7 -7 -7 -7 -6 -6 -6 -------- Run | Yrd Mat Min Mat Min Exi Min Mat Gar Mat Sto Fac Gar Fac Gar Fac Gar Fac Gar Fac Total Allies 28 | . . 3 . . . . . 2 . 10 . 9 . . 2 . . 2 . Largest Group 10 | . . 3 . . . . . 2 1 10 7 6 3 . 1 1 . 2 . Highest-Rated Group 173 | . . 40 . . . . . 78 39 173 112 87 87 . 26 26 . 80 . Highest-Rated Ally 51 | . . 16 . . . . . 39 39 29 16 31 31 . 26 26 . 51 . Initial Warlord ECA Mod 28 | . . . . . . . . . 4 4 3 3 7 7 14 14 22 22 28 Total Orders 7 | . . . . . . . . . . . 5 . 1 . . 1 . . . STAY 2 | . . . . . . . . . . . . . 1 . . 1 . . . EXPLORE 3 | . . . . . . . . . . . 3 . . . . . . . . RETURN 2 | . . . . . . . . . . . 2 . . . . . . . . Ally Attacks 180 | . . 14 . . . . . 28 6 40 24 57 7 . . . . 4 . Total Damage 2082 | . . 80 . . . . . 213 126 584 309 546 105 . . . . 119 . Kills 19 | . . 2 . . . . . 2 . 7 3 4 1 . . . . . . Allies Corrupted . | . . . . . . . . . . . . . . . . . . . . Allies Melted . | . . . . . . . . . . . . . . . . . . . . Intel | -11 -10 -10 -9 -9 -9 -8 -8 -8 -8 -8 -7 -7 -7 -7 -7 -7 -6 -6 -6 ------- Run | Yrd Mat Min Mat Min Exi Min Mat Gar Mat Sto Fac Gar Fac Gar Fac Gar Fac Gar Fac Active Infowar (turns) 7812 | 19 749 534 587 1104 452 . . . . . 355 4 1136 . 771 53 399 . 1649 Optics 176 | . . . . . . . . . . . . . . . . . . . 176 Terrain 4276 | . . . . . . . . . . . 355 4 1136 . 771 53 399 . 1558 Seismic 3445 | 19 749 534 587 1104 452 . . . . . . . . . . . . . . Robot Analysis Total 6 | . . . 3 . . . 2 . . 1 . . . . . . . . . Derelict Logs Recovered 2 | . . . . 2 . . . . . . . . . . . . . . . Drone Launches 2 | . . . . . . . . . . . 2 . . . . . . . . Drone Recoveries 2 | . . . . . . . . . . . 2 . . . . . . . . Exploration | -11 -10 -10 -9 -9 -9 -8 -8 -8 -8 -8 -7 -7 -7 -7 -7 -7 -6 -6 -6 ------------- Run | Yrd Mat Min Mat Min Exi Min Mat Gar Mat Sto Fac Gar Fac Gar Fac Gar Fac Gar Fac Turns Passed 19777 | 138 1594 567 1052 1340 455 311 414 843 800 1807 356 1463 1501 1353 883 1342 643 1254 1661 Spaces Moved 8576 | 61 592 315 475 636 263 171 151 304 350 824 184 451 694 609 464 633 275 466 658 Core 55 | 5 . 47 . . . . . . . . . . . . . . . 3 . Treads 7433 | 56 592 1 353 636 263 171 151 238 332 824 184 451 694 609 464 633 275 388 118 Legs 615 | . . . . . . . . . . . . . . . . . . 75 540 Wheels 473 | . . 267 122 . . . . 66 18 . . . . . . . . . . Hover . | . . . . . . . . . . . . . . . . . . . . Flight . | . . . . . . . . . . . . . . . . . . . . Fastest Speed 50 | 50 160 50 130 166 170 170 170 160 160 163 163 163 165 165 165 165 160 160 160 Average Speed 179 | 150 236 126 170 170 170 170 201 227 170 163 163 216 165 165 165 165 162 201 194 Slowest Speed 1100 | 160 240 240 246 250 170 170 250 250 232 163 163 243 165 165 165 165 163 1100 260 Overloaded Moves . | . . . . . . . . . . . . . . . . . . . . Propulsion Burnouts . | . . . . . . . . . . . . . . . . . . . . Robots Hopped . | . . . . . . . . . . . . . . . . . . . . Potential Cave-ins . | . . . . . . . . . . . . . . . . . . . . Cave-ins Triggered 1 | . . 1 . . . . . . . . . . . . . . . . . Exploration Rate (%) 46 | 4 92 65 45 88 61 41 17 42 41 91 7 57 29 61 24 57 9 64 31 Regions Visited 19 Branch Regions 5 Pre-discovered Areas 4 | . 2 . . 1 1 . . . . . . . . . . . . . . Known Exits Taken 6 | . . . . . . . 1 . 1 . 1 . 1 . 1 . 1 . . Unknown Exits Taken 8 | 1 1 1 1 1 1 1 . . . 1 . . . . . . . . . Scrap Searched 2 | . . 1 . 1 . . . . . . . . . . . . . . . Spaces Dug 56 | . . 3 . . . . . 1 4 1 2 1 8 5 10 . 6 1 14 Terrain Destroyed 428 | . . 39 70 8 . . . 1 4 2 2 8 9 31 10 25 125 13 81 Melee 52 | . . . . . . . . 1 4 1 2 1 8 5 10 . 6 1 13 Projectile 43 | . . . . . . . . . . 1 . 7 . 1 . 13 12 7 2 AOE 332 | . . 39 70 8 . . . . . . . . . 25 . 12 107 5 66 Terrain Rammed . | . . . . . . . . . . . . . . . . . . . . Walls Destroyed . | . . . . . . . . . . . . . . . . . . . . Machines Disabled . | . . . . . . . . . . . . . . . . . . . . Actions | -11 -10 -10 -9 -9 -9 -8 -8 -8 -8 -8 -7 -7 -7 -7 -7 -7 -6 -6 -6 --------- Run | Yrd Mat Min Mat Min Exi Min Mat Gar Mat Sto Fac Gar Fac Gar Fac Gar Fac Gar Fac Total 11352 | 84 688 461 626 792 273 183 213 388 504 1158 211 768 974 817 531 789 376 636 880 Wait 1099 | 5 20 117 38 85 . 6 14 21 93 228 2 59 193 82 24 29 8 36 39 Move 8559 | 60 591 314 474 635 262 170 151 303 349 823 184 450 694 607 464 632 274 464 658 Hop . | . . . . . . . . . . . . . . . . . . . . Pick Up 146 | 1 10 6 20 4 1 3 6 6 9 5 2 7 4 5 3 10 9 18 17 Fast Attach 82 | 7 3 4 5 . . . 2 1 4 5 2 5 6 2 2 7 2 7 18 Attach 59 | . 4 . 1 4 4 . 3 . . . 2 2 1 3 . 9 11 11 4 Detach 14 | . 1 . 1 . 2 . . . . 1 . . 2 . . 1 1 1 4 Swap 205 | . 5 4 14 15 1 . 5 9 11 17 4 21 21 16 12 10 15 7 18 Drop 157 | . . 3 16 1 3 . 8 7 13 10 4 14 10 4 4 16 3 9 32 Fire 707 | 11 53 13 52 37 . 4 24 32 20 39 7 67 22 77 10 74 46 60 59 Melee 121 | . . . . 6 . . . 3 4 9 2 27 13 6 12 . 7 8 24 Ram . | . . . . . . . . . . . . . . . . . . . . Kick 6 | . . . . . . . . . . . . . . . . . . . 6 Crush 34 | . 1 . 5 4 . . . . 1 11 1 . 8 . . 1 . 1 1 Escape Stasis 19 | . . . . . . . . 6 . . . 2 . 6 . . . 5 . Rewire 124 | . . . . 1 . . . . . 2 . 114 . . . . . 7 . Trap 2 | . . . . . . . . . . . . . . . . . . 2 . Miscellaneous 18 | . . . . . . . . . . 8 1 . . 9 . . . . . Route ------- -11/Scrapyard -10/Materials (discovered 4 exits: *Mat x3 / [*Min]) -10/Mines -9/Materials (discovered 2 exits: *Mat / [*Min]) -9/Mines (discovered 3 exits: *Mat / *Exi / [*Zio]) -9/Exiles -8/Mines (discovered 2 exits: *Mat x2) -8/Materials (discovered 2 exits: Sto / Gar) -8/Garrison -8/Materials (discovered 2 exits: *Fac / *Sto) -8/Storage -7/Factory (discovered 2 exits: *Low / Gar) -7/Garrison -7/Factory (discovered 5 exits: *Fac x2 / Low x2 / Gar) -7/Garrison (discovered 2 exits: *Fac x2) -7/Factory (discovered 2 exits: *Fac / Gar) -7/Garrison (discovered 3 exits: *Fac x3) -6/Factory -6/Garrison (discovered 2 exits: *Fac x2) -6/Factory History --------- Turn | Location | Event 2 | -11/Scrapyard | Met Revision 17 8 | -11/Scrapyard | Discovered new exit (range 14) 139 | -11/Scrapyard | Entered Materials 316 | -10/Materials | Build established: Mutant 425 | -10/Materials | Discovered new exit (range 15) 473 | -10/Materials | Central database locked down 475 | -10/Materials | Discovered new exit (range 16) 1030 | -10/Materials | Discovered new exit (range 8) 1241 | -10/Materials | Discovered new exit (range 10) 1709 | -10/Materials | Lost 3 parts (1p1n1w) 1733 | -10/Materials | Entered Mines 1750 | -10/Mines | Assembled infested the area 1755 | -10/Mines | Assisted by a Guerilla fighting off Assembled 1792 | -10/Mines | Crushed by falling debris 1792 | -10/Mines | Core integrity fell below 50% 1793 | -10/Mines | Core integrity fell below 20% 1811 | -10/Mines | Destroyed 12 combat bots 1823 | -10/Mines | Lost 3 parts (1n2w) 2059 | -10/Mines | Assisted by bots powering up and referring to "LRC-V3" 2159 | -10/Mines | Lost 3 allies 2293 | -10/Mines | Discovered new exit (range 6) 2300 | -10/Mines | Entered Materials 2300 | -9/Materials | Evolved 2 slots: Propulsion x1, Weapon x1 2905 | -9/Materials | Discovered new exit (range 9) 3069 | -9/Materials | Build established: Gunner 3094 | -9/Materials | Discovered new exit (range 7) 3143 | -9/Materials | Central database locked down 3352 | -9/Materials | Entered Mines 3362 | -9/Mines | Met a Derelict bent on vengeance 3382 | -9/Mines | Discovered new exit (range 15) 3705 | -9/Mines | Excavation squad dispatched 3705 | -9/Mines | A large section of the Mines collapsed 3994 | -9/Mines | Learned location of Storage (-8) 4486 | -9/Mines | A Derelict revealed a hidden shortcut to a safe place 4684 | -9/Mines | Deemed a non-threat by the Exiles lab entrance 4686 | -9/Mines | Discovered new exit (range 5) 4692 | -9/Mines | Entered Exiles 4736 | -9/Exiles | Met 8R-AWN 4764 | -9/Exiles | Met EX-HEX 4832 | -9/Exiles | Met EX-DEC 4838 | -9/Exiles | Learned location of Zion (-7) 4869 | -9/Exiles | Met EX-BIN 4896 | -9/Exiles | Aligned with FarCom system 4898 | -9/Exiles | Given EX-Vault access code 4937 | -9/Exiles | Opened EX-Vault 4953 | -9/Exiles | Found AWS/Gauss 4989 | -9/Exiles | Warned to stay clear of 0b10 Research branches 5006 | -9/Exiles | Build established: Mutant 5127 | -9/Exiles | Discovered new exit (range 10) 5147 | -9/Exiles | Left Exiles lab with AWS/Gauss 5147 | -9/Exiles | Entered Mines 5220 | -8/Mines | Discovered new exit (range 10) 5260 | -8/Mines | Found a Scrap Suit stashed away for nefarious purposes 5417 | -8/Mines | Discovered new exit (range 6) 5451 | -8/Mines | Build established: Skirmisher 5458 | -8/Mines | Entered Materials 5458 | -8/Materials | Evolved 2 slots: Utility x2 5459 | -8/Materials | Identified exit to Storage 5649 | -8/Materials | Met 7R-MNS 5763 | -8/Materials | Build established: Scavenger-Skirmisher 5769 | -8/Materials | Garrison activated, responded to threat 5872 | -8/Materials | Identified exit to Garrison 5872 | -8/Materials | Entered Garrison 5974 | -8/Garrison | Triggered checkpoint 6254 | -8/Garrison | Rescued a captive Derelict 6256 | -8/Garrison | Rescued a captive Derelict 6282 | -8/Garrison | Triggered checkpoint 6285 | -8/Garrison | Triggered checkpoint 6394 | -8/Garrison | Triggered checkpoint 6470 | -8/Garrison | Garrison Relay disabled 6499 | -8/Garrison | Build established: Scavenger-Tank 6563 | -8/Garrison | Discovered new exit (range 14) 6705 | -8/Garrison | Garrison Relay disabled 6715 | -8/Garrison | Entered Materials 6715 | -8/Materials | Accompanied by 1 ally 6996 | -8/Materials | Garrison activated, responded to threat 7360 | -8/Materials | Build established: Tank 7468 | -8/Materials | Discovered new exit (range 9) 7515 | -8/Materials | Entered Storage 7574 | -8/Storage | Repaired Gauss Rifle 7620 | -8/Storage | Repaired Gauss Rifle 8304 | -8/Storage | Discovered new exit (range 7) 8859 | -8/Storage | Assisted by bots powering up and referring to "LRC-V3" 9212 | -8/Storage | Lost 3 allies 9322 | -8/Storage | Entered Factory 9322 | -7/Factory | Accompanied by 7 allies 9322 | -7/Factory | Evolved 2 slots: Utility x2 9359 | -7/Factory | Discovered new exit (range 39) 9447 | -7/Factory | Lost 3 allies 9539 | -7/Factory | Fabricated Lrn. Terrain Scanner? 9678 | -7/Factory | Identified exit to Garrison 9678 | -7/Factory | Entered Garrison 9678 | -7/Garrison | Accompanied by 1 ally 9683 | -7/Garrison | Triggered checkpoint 9771 | -7/Garrison | Garrison Relay disabled 10000 | -7/Garrison | Triggered checkpoint 10168 | -7/Garrison | Triggered checkpoint 10531 | -7/Garrison | Triggered checkpoint 10554 | -7/Garrison | Triggered checkpoint 10570 | -7/Garrison | Triggered checkpoint 10580 | -7/Garrison | Triggered checkpoint 10679 | -7/Garrison | Discovered new exit (range 12) 10716 | -7/Garrison | Triggered checkpoint 10821 | -7/Garrison | Lost 4 allies 10946 | -7/Garrison | Garrison Relay disabled 11141 | -7/Garrison | Entered Factory 11141 | -7/Factory | Accompanied by 3 allies 11321 | -7/Factory | Identified exit to Lower Caves 11775 | -7/Factory | Build established: Assassin 12312 | -7/Factory | Discovered new exit (range 15) 12513 | -7/Factory | Discovered new exit (range 20) 12642 | -7/Factory | Identified exit to Garrison 12642 | -7/Factory | Entered Garrison 12842 | -7/Garrison | Triggered checkpoint 12886 | -7/Garrison | Garrison Relay disabled 12959 | -7/Garrison | Garrison Relay disabled 12963 | -7/Garrison | Garrison Relay disabled 13138 | -7/Garrison | Triggered checkpoint 13148 | -7/Garrison | Build established: Tank 13153 | -7/Garrison | Triggered checkpoint 13222 | -7/Garrison | Destroyed 13 combat bots 13294 | -7/Garrison | Discovered new exit (range 12) 13408 | -7/Garrison | Phase Generator disabled 13576 | -7/Garrison | Triggered checkpoint 13648 | -7/Garrison | Garrison Relay disabled 13666 | -7/Garrison | Triggered checkpoint 13831 | -7/Garrison | Discovered new exit (range 14) 13863 | -7/Garrison | Attempted to access garrison exit controls, blocked by remote lockdown 13995 | -7/Garrison | Entered Factory 14642 | -7/Factory | Discovered new exit (range 15) 14826 | -7/Factory | Build established: Assassin 14875 | -7/Factory | Identified exit to Garrison 14878 | -7/Factory | Entered Garrison 14878 | -7/Garrison | Accompanied by 1 ally 14934 | -7/Garrison | Triggered checkpoint 15011 | -7/Garrison | System corruption reached 10% 15068 | -7/Garrison | Discovered new exit (range 54) 15068 | -7/Garrison | Discovered new exit (range 68) 15068 | -7/Garrison | Discovered new exit (range 57) 15073 | -7/Garrison | Garrison Relay disabled 15140 | -7/Garrison | Triggered checkpoint 15144 | -7/Garrison | Triggered checkpoint 15164 | -7/Garrison | Triggered checkpoint 15181 | -7/Garrison | Build established: Tank 15202 | -7/Garrison | Triggered checkpoint 15242 | -7/Garrison | Destroyed 12 combat bots 15504 | -7/Garrison | Triggered checkpoint 15520 | -7/Garrison | Garrison Relay disabled 15526 | -7/Garrison | Build established: Scavenger-Tank 15529 | -7/Garrison | Core integrity fell below 50% 15842 | -7/Garrison | Garrison Relay disabled 15880 | -7/Garrison | Triggered checkpoint 15914 | -7/Garrison | Garrison Relay disabled 15916 | -7/Garrison | Garrison Relay disabled 16220 | -7/Garrison | Entered Factory 16220 | -6/Factory | Evolved 2 slots: Propulsion x1, Weapon x1 16247 | -6/Factory | Identified exit to Garrison 16570 | -6/Factory | First assault squad dispatched 16624 | -6/Factory | Garrison activated, responded to threat 16730 | -6/Factory | Destroyed 19 combat bots 16802 | -6/Factory | Lost 13 parts (1p3n4u5w) 16822 | -6/Factory | Destroyed 10 combat bots 16863 | -6/Factory | Entered Garrison 16978 | -6/Garrison | Triggered checkpoint 17094 | -6/Garrison | Garrison Relay disabled 17156 | -6/Garrison | Triggered checkpoint 17178 | -6/Garrison | Spotted B-75 Beast 17186 | -6/Garrison | Destroyed B-75 Beast 17237 | -6/Garrison | Lost 4 parts (1p2n1w) 17461 | -6/Garrison | Triggered checkpoint 17496 | -6/Garrison | Garrison Relay disabled 17589 | -6/Garrison | Discovered new exit (range 14) 17679 | -6/Garrison | Attempted to access garrison exit controls, blocked by remote lockdown 17755 | -6/Garrison | Triggered checkpoint 17810 | -6/Garrison | Core integrity fell below 50% 17882 | -6/Garrison | Lost 10 parts (1p2n3u4w) 17927 | -6/Garrison | Triggered checkpoint 18103 | -6/Garrison | Discovered new exit (range 8) 18117 | -6/Garrison | Entered Factory 18203 | -6/Factory | Build established: Scavenger-Skirmisher 18454 | -6/Factory | Found Prototype Processor 18454 | -6/Factory | Identified Exp. Targeting Computer 18817 | -6/Factory | First assault squad dispatched 18880 | -6/Factory | Fabricated Adv. Shield Generator? 19090 | -6/Factory | Build established: Assassin 19419 | -6/Factory | Core integrity fell below 20% 19591 | -6/Factory | Garrison activated, responded to threat 19778 | -6/Factory | Destroyed by G-67 Veteran with Field Laser Last Messages --------------- 19731_ K-01 Serf collects debris. 19733_ U-05 Engineer lays Concrete. 19734_ U-05 Engineer builds a Wall. 19735_ System corrupted: FCS attempts to trigger Coil Gun. 19735_ System corrupted: Coil Gun misfires. 19735_ Slug penetrates B-48 Gladiator. 19736_ Imp. Medium Treads destroyed. 19738_ K-01 Serf collects debris. 19739_ The unstable cave ceiling collapses. 19744_ W-25 Informer sends out distress signal. 19747_ The unstable cave ceiling collapses. 19750_ Kicked T-07 Excavator out of the way. 19760_ VKYPFCH3:APLUYKIE#S0RMHYU 19771_ Fusion Modulator explodes. 19771_ G-50 Soldier destroyed. 19771_ Slug penetrates L-41 Fighter. 19771_ HV Slug penetrates L-41 Fighter. 19771_ U-05 Engineer lays Concrete. 19772_ U-05 Engineer builds a Wall. 19776_ Kicked U-05 Engineer. Map ----- +----------------------------------------------------+ | ??"""" # R = # # | | ? ? # """" # # | | ?? ? ? """ # + | | ?########### # ] """" # # | | #?######?## ###### %/ """" # # | | ??######### ! # / ! """" # # | | ??# ## """ # [ """" # # ? | | ## ?#! """ # """" # + | | ??# ## """ # # ! # ##### | | ??? ##! # # # ## ? | | ? ? ## !== + ### ################# | | ??# ## !==? # # # #?############ " | | ??######## !== # # #?############? " | | ??######### w # # ################ | | ?#############+##### ############# ? #?? | | ############# ? ?#+## | | #############? ? | | ########?#### """""" +??? | | ##########?#? "?"""" # ## | | ## ######## """""" ? ?? | | ###+######+;;;; ;;;"### "? + "?"""? # #? | | ? # ; % Y ;### ######## ?? ?#??? | | ? ?? ?"?" ; [ g ; ## ######### ?# #? | | #? ?"" ; b ; ## ###?#####?#####?#? ?? | | ? # ?"" ; ;;### ############?##?????? | | ?# ? ; ul@ t ######## ????# | | ????#? ?! ; ;;;##/##### #?##?###?#????? | | ? ?? ?! ; ;; #### #####?#?????+?? | | ? ??# ; ;; #### ? ? ? ???? | | ? ? ? ? ;;;; ;;#!!! #### #???? ??? | | ?? ????######## # ##!!! # ? ?????""??? | | ? #?####??#############!!! # ???? #?#?"???? | | ?#######??######??#### # ? ?? ??#?????? | | ? ??#?##???###?#####??## !##? ?? ??? ?????? ?? | | ? ? ##?#?###?###?#?#####?######? ? ? ????#???? | | ? # ? ? ? ?##?####?#???????#?? ? ? ?????#???? | | ???# ????#?##??###??##????#?????#?????#??????? | | ????# ???"???#####??###?##?#?#?# ?###? ??? ??????? | | ??? #?"??"?? #????#?##?####???#??#??? ???? ?????? | | ? ???"?"? ??#######??#???#?#??####??????? ????? | | ????#?"""" #?##?###?## ? ??????????? ?????????? | | ????# ?"?" ?#????##### ?? ??? ?? ? ??????????? | | ???????"?? ??#???##????"? ??? ??????? ?????????? | | ??????? ??? ??##?##??### ?"?? ????????? ?????????? | | ???????????????#??####?# ?? ? ? ?#????????????? | | ?????????????#??????#??#??? ? ?? ??????????????? | | ???????????????#????#??#???????"?????????????????? | | ????????????????#????????? ?? ???????????????????? | | ?????????????????????#????????"??????????????????? | | ?????????????????????????????????????????????????? | +----------------------------------------------------+ Best States ------------- Heat Dissipation 94 Coolant Potential 65 Energy Generation 21 Energy Capacity 310 Matter Stores 300 Matter Capacity 300 Sight Range 22 Terrain Scan Range 24 Terrain Scan Density 210 Armor Coverage 1050 Resistance: KI 30 Resistance: TH 25 Evasion (%) 50 Targeting Accuracy 8 Recoil Reduction 4 Authchip Count 1 Item Schematics ----------------- Imp. Flight Unit | -9/Materials | Scanalyzed Hacking Suite | -8/Materials | Scanalyzed Plasma Cutter | -8/Materials | Scanalyzed Arm. Treads | -8/Materials | Scanalyzed Imp. Medium Armor Plating | -8/Materials | Scanalyzed Triangulator | -8/Storage | Hacked Lgt. Angular Momentum Engine | -8/Storage | Hacked Huge Storage Unit | -8/Storage | Hacked Arm. Huge Wheel | -7/Factory | Scanalyzed Robot Schematics ------------------ M-13 Machinist | -10/Materials | Hacked Fabricated ------------ Lrn. Terrain Scanner | x2 | -7/Factory | Preloaded Adv. Shield Generator | x2 | -6/Factory | Preloaded Repaired ---------- Gauss Rifle | 25% | -8/Storage Gauss Rifle | 37% | -8/Storage Studied --------- Wheel | -9/Materials | Hacked Rocket Launcher | -9/Materials | Hacked Hvy. Assault Rifle | -9/Materials | Hacked Mni. Grenade Launcher | -9/Materials | Hacked Assault Rifle | -9/Materials | Hacked Lgt. Treads | -8/Materials | Hacked Arm. Huge Wheel | -7/Factory | Hacked Minigun | -7/Factory | Hacked Alien Tech Used ----------------- None Achievements -------------- Oppo Buddy Challenges ------------ None Game ------ Seed ReflexLauncherShotgun Manual? 0 Play Time 03:27:28 Cumulative 311.7 hours Start 2026.07.05 @ 13:49:51 End 2026.07.08 @ 09:52:44 Sessions 19 Manual Loads 0 Difficulty Rogue Special Mode None Game No. 125 Rogue 120 Adventurer 5 Explorer 0 Win Type - Total 8 Types 4/0/2/1/0/0/0/0/0/1 Lore% 74 Gallery% 71 Achievement% 65 Wizard Run 0 Options --------- Layout 0 ASCII 0 Keyboard 0 Movement Numpad Keybinds 0 Fullscreen 1 Font 18/SmallcapsGlow Map View 76x50 Zoom Use 0% Tactical HUD 1 Map Filters NONE Filters NONE Steam 1 RUN: 542b4652-5dbb-4304-a1e6-aff7b482c30c